bitfinex/quotes_BTCUSD_20260310
["timestamp","ask_amount","ask_price","bid_price","bid_amount"]
[1773125960648,0.03,69959.0,69958.0,0.0048824]
[1773125960820,0.07169843,69964.0,69958.0,0.0063224]
[1773125961122,0.03,69963.0,69958.0,0.0063224]
[1773125961905,0.03,69963.0,69958.0,0.00144]
[1773125962112,0.03,69963.0,69959.0,0.03316001]
[1773125962590,0.03022001,69963.0,69959.0,0.03316001]
[1773125962800,0.03,69961.0,69959.0,0.03316001]
[1773125964410,0.03,69961.0,69958.0,0.00164]
[1773125964613,0.03,69961.0,69916.0,0.35637176]
[1773125964614,0.03,69959.0,69951.0,0.07167818]
[1773125964814,0.04158,69959.0,69952.0,0.00144]
[1773125965011,0.03,69957.0,69952.0,0.00144]
[1773125967649,0.005,69954.0,69953.0,0.00144]
[1773125967847,0.07327451,69954.0,69953.0,0.00144]
[1773125968062,0.035,69954.0,69953.0,0.00144]
[1773125968601,0.035,69954.0,69943.0,0.07148678]
[1773125968750,0.03,69953.0,69945.0,0.00144]
[1773125969150,0.07146819,69962.0,69945.0,0.03861734]
[1773125969151,0.07147043,69960.0,69945.0,0.03861734]
[1773125969338,0.07147043,69960.0,69950.0,0.05454587]
[1773125969541,0.07147043,69960.0,69951.0,0.00144]
[1773125969742,0.07146913,69961.0,69952.0,0.07147758]
[1773125969743,0.03,69959.0,69952.0,0.07147758]
[1773125970147,0.005,69958.0,69951.0,0.00144]
[1773125970381,0.03,69956.0,69949.0,0.07147994]
[1773125970695,0.00356001,69954.0,69950.0,0.00144]
[1773125970878,0.00068002,69954.0,69950.0,0.00144]
[1773125971704,0.03,69958.0,69950.0,0.00144]
[1773125971914,0.0348941,69958.0,69950.0,0.00144]
[1773125974687,0.03,69957.0,69950.0,0.07291883]
[1773125975865,0.03,69956.0,69951.0,0.00144]
[1773125976905,0.03,69961.0,69951.0,0.07291827]
[1773125979162,0.03,69959.0,69951.0,0.07291827]
[1773125979760,0.04568487,69978.0,69952.0,0.00493934]
[1773125979958,0.0001678,69992.0,69969.0,0.00470769]
[1773125979959,0.01482152,69990.0,69969.0,0.00470769]
[1773125980302,0.03,69987.0,69971.0,0.00476835]
[1773125981252,0.03,69987.0,69972.0,0.07145715]
[1773125981457,0.14278255,69991.0,69972.0,0.07145715]
[1773125981458,0.36288303,70000.0,69973.0,0.05454587]
[1773125981664,0.05141012,70015.0,70000.0,0.05454587]
[1773125981859,0.04551265,70011.0,69990.0,0.05454587]
[1773125982186,0.03641012,70006.0,69991.0,0.00144]
[1773125982370,0.03641012,70002.0,69991.0,0.00144]
[1773125983203,0.03641012,70002.0,69992.0,0.07143673]
[1773125984593,0.03641012,70002.0,69992.0,0.07243673]
[1773125984994,1e-08,70025.0,69996.0,0.03234816]
[1773125985215,0.04463367,70023.0,69996.0,0.07142959]
[1773125985400,0.03592161,70019.0,69997.0,0.03234816]
[1773125985599,0.07284477,70024.0,69985.0,0.07144388]
[1773125985600,0.0059564,70007.0,69985.0,0.07144388]
[1773125985799,0.0059564,70003.0,69985.0,0.07144388]
[1773125986027,0.0059564,70003.0,69985.0,0.11072348]
[1773125986410,0.0059564,70003.0,69992.0,0.001]
[1773125986711,0.04187801,70003.0,69992.0,0.001]
[1773125986930,0.04187801,70003.0,69993.0,0.05454587]
[1773125987313,0.04187801,70003.0,69994.0,0.07143469]
[1773125988075,0.07141652,70012.0,69994.0,0.07143469]
[1773125988076,0.04729662,70012.0,69994.0,0.07143469]
[1773125988208,0.05239551,70012.0,69994.0,0.07143469]
[1773125988545,0.00509889,70011.0,70000.0,0.05399069]
[1773125988761,0.00509889,70011.0,70000.0,0.05543069]
[1773125989124,0.07141039,70018.0,70000.0,0.05543069]
[1773125989125,0.01,70030.0,70001.0,0.04836962]
[1773125989333,0.04729662,70027.0,70014.0,0.07141428]
[1773125989535,0.01,70030.0,70014.0,0.07141428]
[1773125989536,0.04729662,70026.0,70014.0,0.07141428]
[1773125989736,0.05255633,70025.0,70014.0,0.07141428]
[1773125990138,0.05255632,70024.0,70014.0,0.07141428]
[1773125991185,0.05255632,70024.0,70014.0,0.07241428]
[1773125991335,0.05255632,70024.0,70014.0,0.07141428]
[1773125991538,0.03,70023.0,70014.0,0.07141428]
[1773125991736,0.03,70023.0,70014.0,0.07241428]
[1773125992693,1e-08,70025.0,70014.0,0.07341428]
[1773125993186,1e-08,70025.0,70014.0,0.07241428]
[1773125993385,0.01,70030.0,70014.0,0.07241428]
[1773125993386,1e-08,70030.0,70015.0,0.04692962]
[1773125993706,1e-08,70030.0,70020.0,0.1632187]
[1773125994002,1e-08,70031.0,70021.0,0.04836962]
[1773125994380,1e-08,70031.0,70020.0,0.1632187]
[1773125994586,0.04729662,70025.0,70012.0,0.00144]
[1773125994925,0.08255185,70024.0,70012.0,0.00144]
[1773125995105,0.00525523,70029.0,70012.0,0.00144]
[1773125995404,0.04729662,70024.0,70001.0,0.07142755]
[1773125995654,0.04729662,70018.0,69991.0,0.17152]
[1773125995816,0.03,70013.0,69985.0,0.01008879]
[1773125995971,0.03,70009.0,69985.0,0.01008879]
[1773125996181,0.04729662,70004.0,69985.0,0.01008879]
[1773125996391,0.03,69999.0,69984.0,0.00562]
[1773125996601,0.03,69999.0,69975.0,0.04612076]
[1773125996602,0.03,69993.0,69977.0,0.07145204]
[1773125996804,0.04729662,69988.0,69964.0,0.21335581]
[1773125997010,0.04729662,69988.0,69956.0,0.08718199]
[1773125997011,0.03,69983.0,69956.0,0.08718199]
[1773125997214,0.03,69979.0,69958.0,0.04692962]
[1773125997415,0.00144,69978.0,69959.0,0.01008879]
[1773125997617,0.03,69976.0,69961.0,0.01008879]
[1773125997836,0.03,69976.0,69962.0,0.00144]
[1773125998064,0.03,69976.0,69935.0,0.23032518]
[1773125998065,0.01787807,69974.0,69935.0,0.23032518]
[1773125998244,0.03,69971.0,69950.0,0.1632187]
[1773125998418,0.00144,69970.0,69953.0,0.0049944]
[1773125999235,0.00144,69970.0,69925.0,0.00023]
[1773125999236,0.04729662,69967.0,69931.0,0.0049944]
[1773125999543,0.03,69962.0,69940.0,0.1632187]
[1773125999743,0.00144,69961.0,69943.0,0.04692962]
[1773125999948,0.00144,69961.0,69944.0,0.05336402]
[1773126000362,0.00144,69961.0,69944.0,0.0064344]
[1773126000568,0.03,69956.0,69936.0,0.07149189]
[1773126000762,0.03,69954.0,69934.0,0.0049944]
[1773126000988,0.03,69948.0,69935.0,0.00144]
[1773126001222,0.03,69946.0,69936.0,0.00144]
[1773126001843,0.03,69944.0,69936.0,0.00144]
[1773126002302,0.001,69948.0,69936.0,0.07293347]
[1773126002524,0.07147841,69952.0,69938.0,0.04692962]
[1773126002757,0.07147841,69952.0,69941.0,0.04692962]
[1773126002978,0.03,69951.0,69942.0,0.0064344]
[1773126004080,0.03,69950.0,69943.0,0.07148678]
[1773126004296,0.07147594,69954.0,69943.0,0.07148678]
[1773126004842,0.07147594,69954.0,69936.0,0.01]
[1773126004843,0.0560107,69953.0,69936.0,0.01]
[1773126004965,0.03,69950.0,69936.0,0.01]
[1773126005162,0.0860107,69948.0,69936.0,0.01]
[1773126005394,0.03,69948.0,69936.0,0.01]
[1773126005752,0.00144,69948.0,69937.0,0.05502586]
[1773126005887,0.07146838,69961.0,69942.0,0.05502586]
[1773126006081,0.07146838,69961.0,69944.0,0.0049944]
[1773126006082,0.03,69960.0,69944.0,0.0049944]
[1773126006285,0.03,69960.0,69945.0,0.05502586]
[1773126006484,0.07146684,69963.0,69948.0,0.0049944]
[1773126006685,0.07146684,69963.0,69950.0,0.0049944]
[1773126007282,0.03,69962.0,69950.0,0.0049944]
[1773126008488,0.03,69961.0,69952.0,0.00865264]
[1773126008696,0.06368664,69963.0,69952.0,0.00865264]
[1773126009688,0.03022001,69962.0,69952.0,0.00865264]
[1773126010666,0.03,69961.0,69953.0,0.07147656]
[1773126011342,0.03,69961.0,69954.0,0.00865264]
[1773126011785,0.00022001,69962.0,69954.0,0.00865264]
[1773126013299,0.00022001,69962.0,69955.0,0.07147451]
[1773126014261,0.03,69961.0,69950.0,0.07147962]
[1773126014742,0.03,69961.0,69951.0,0.05502586]
[1773126014945,0.00022001,69962.0,69952.0,0.05502586]
[1773126015158,0.00022001,69962.0,69950.0,0.07147962]
[1773126015159,0.00144,69967.0,69956.0,0.05502586]
[1773126015397,0.03,69971.0,69960.0,0.05502586]
[1773126015570,0.03,69971.0,69961.0,0.00994489]
[1773126016358,0.07146011,69970.0,69961.0,0.00994489]
[1773126016567,0.03022001,69969.0,69961.0,0.00850489]
[1773126016802,0.03022001,69969.0,69962.0,0.00994489]
[1773126017157,0.03122001,69969.0,69963.0,0.00144]
[1773126017574,0.03122001,69969.0,69957.0,0.12649629]
[1773126017575,0.03,69968.0,69957.0,0.00144]
[1773126017935,0.07268082,69969.0,69947.0,0.08148167]
[1773126017936,0.03,69964.0,69953.0,0.00144]
[1773126018078,0.0860107,69964.0,69953.0,0.00144]
[1773126018279,0.0860107,69964.0,69948.0,0.00850489]
[1773126018479,0.03,69962.0,69949.0,0.00144]
[1773126018870,0.03,69962.0,69948.0,0.00850489]
[1773126019076,0.03,69962.0,69949.0,0.00144]
[1773126019547,0.03,69960.0,69949.0,0.00144]
[1773126019850,0.03,69960.0,69949.0,0.07292011]
[1773126020146,0.03,69960.0,69949.0,0.081425]
[1773126020325,0.03,69960.0,69949.0,0.07292011]
[1773126020524,0.10145858,69971.0,69952.0,0.05502586]
[1773126020724,0.10145858,69971.0,69953.0,0.00850489]
[1773126020725,0.00144,69968.0,69953.0,0.00850489]
[1773126021251,0.00144,69967.0,69953.0,0.00850489]
[1773126022156,0.03,69965.0,69950.0,0.07147962]
[1773126022328,0.07146328,69966.0,69947.0,0.01]
[1773126022329,0.03,69959.0,69947.0,0.01]
[1773126022677,0.03,69957.0,69947.0,0.01144]
[1773126022868,0.03,69957.0,69948.0,0.07148167]
[1773126023072,0.03,69957.0,69949.0,0.00850489]
[1773126023673,0.00144,69962.0,69949.0,0.00850489]
[1773126023970,0.00022001,69957.0,69949.0,0.00850489]
[1773126024180,0.03022001,69957.0,69950.0,0.07998451]
[1773126024579,0.03022001,69957.0,69951.0,0.00850489]
[1773126025377,0.07147059,69959.0,69951.0,0.00850489]
[1773126025598,0.08466421,69965.0,69951.0,0.00850489]
[1773126025809,0.01319933,69965.0,69953.0,0.00850489]
[1773126025988,0.07168577,69964.0,69954.0,0.00144]
[1773126026139,0.03,69963.0,69955.0,0.07147451]
[1773126026596,0.03,69963.0,69955.0,0.0799794]
[1773126027282,0.03,69963.0,69955.0,0.07147451]
[1773126027488,0.03,69962.0,69956.0,0.00850489]
[1773126028384,0.03,69961.0,69957.0,0.07147247]
[1773126029040,0.03,69961.0,69957.0,0.07997736]
[1773126029480,0.03022001,69964.0,69957.0,0.07997736]
[1773126030437,0.071446,69983.0,69957.0,0.07997736]
[1773126030438,0.07167837,69971.0,69957.0,0.05502586]
[1773126030672,0.03,69970.0,69958.0,0.00850489]
[1773126030902,0.03,69970.0,69959.0,0.00850489]
[1773126031105,0.03,69970.0,69961.0,0.00850489]
[1773126031742,0.00022001,69964.0,69961.0,0.00850489]
[1773126032472,0.03,69970.0,69962.0,0.07146736]
[1773126032670,0.03,69970.0,69963.0,0.00850489]
[1773126032894,0.03,69969.0,69963.0,0.00850489]
[1773126033912,0.00022001,69971.0,69963.0,0.00850489]
[1773126034758,0.03,69970.0,69960.0,0.00144]
[1773126034970,0.03,69970.0,69956.0,0.07997754]
[1773126035200,0.03,69966.0,69949.0,0.07147962]
[1773126035369,0.03,69962.0,69951.0,0.00144]
[1773126035584,0.03,69962.0,69951.0,0.00850489]
[1773126036404,0.03,69970.0,69951.0,0.00850489]
[1773126036561,0.03144,69970.0,69953.0,0.06729537]
[1773126036757,0.03,69968.0,69957.0,0.06729537]
[1773126036938,0.03,69968.0,69959.0,0.06729537]
[1773126037145,0.00022001,69971.0,69960.0,0.00850489]
[1773126037531,0.00022001,69971.0,69962.0,0.00850489]
[1773126038352,0.03,69970.0,69955.0,0.07147451]
[1773126038777,0.03,69968.0,69957.0,0.07147247]
[1773126039273,0.03,69968.0,69959.0,0.00850489]
[1773126039689,0.03,69967.0,69959.0,0.06729537]
[1773126039856,0.00022001,69971.0,69960.0,0.00850489]
[1773126040058,0.00022001,69971.0,69962.0,0.00850489]
[1773126040257,0.00022001,69971.0,69963.0,0.00994489]
[1773126040758,0.00022001,69971.0,69964.0,0.07146532]
[1773126041596,0.00023,69975.0,69967.0,0.00850489]
[1773126041804,0.03,69973.0,69964.0,0.07146532]
[1773126042329,0.03,69973.0,69965.0,0.00144]
[1773126042738,0.03,69973.0,69967.0,0.07146226]
[1773126042913,0.03,69972.0,69967.0,0.07146226]
[1773126043930,0.03,69974.0,69967.0,0.07146226]
[1773126044205,0.10145577,69974.0,69966.0,0.07290265]
[1773126044427,0.10145552,69974.0,69966.0,0.07290265]
[1773126044629,0.10145552,69974.0,69961.0,0.07146751]
[1773126044827,0.10145552,69974.0,69953.0,0.06729537]
[1773126044828,0.03,69966.0,69950.0,0.0899844]
[1773126045172,0.03,69966.0,69951.0,0.00994489]
[1773126045443,0.03,69966.0,69953.0,0.00850489]
[1773126045792,0.10013419,69970.0,69953.0,0.00850489]
[1773126045992,0.03,69965.0,69950.0,0.0814789]
[1773126046243,0.03,69961.0,69951.0,0.00144]
[1773126046953,0.03,69959.0,69951.0,0.00144]
[1773126047459,0.03,69959.0,69951.0,0.0002]
[1773126047631,0.03,69959.0,69952.0,0.00144]
[1773126048184,0.03,69959.0,69951.0,0.00164]
[1773126048354,0.03,69959.0,69951.0,0.07311857]
[1773126048734,0.03,69959.0,69951.0,0.0002]
[1773126048934,0.03,69957.0,69948.0,0.0002]
[1773126049162,0.10562158,69955.0,69947.0,0.00144]
[1773126049543,0.03,69955.0,69947.0,0.00144]
[1773126050442,0.03,69954.0,69947.0,0.00144]
[1773126051485,0.03,69955.0,69947.0,0.00144]
[1773126052614,0.03,69955.0,69945.0,0.07148473]
[1773126052785,0.03,69955.0,69946.0,0.00144]
[1773126053739,0.03,69953.0,69946.0,0.00144]
[1773126054506,0.03,69953.0,69946.0,0.07292346]
[1773126054903,0.03,69958.0,69947.0,0.07346083]
[1773126055110,0.03,69958.0,69948.0,0.00850489]
[1773126055753,0.10147176,69958.0,69949.0,0.07148065]
[1773126056044,0.10147176,69958.0,69949.0,0.07998554]
[1773126056407,0.07146679,69963.0,69950.0,0.00850489]
[1773126056608,0.07146679,69963.0,69951.0,0.00850489]
[1773126056831,0.07146679,69963.0,69953.0,0.00850489]
[1773126057240,0.00022001,69957.0,69953.0,0.00850489]
[1773126057442,0.03,69962.0,69953.0,0.00850489]
[1773126057873,0.03,69962.0,69954.0,0.07147554]
[1773126058076,0.07145919,69970.0,69954.0,0.07147554]
[1773126058405,0.07145919,69970.0,69955.0,0.00850489]
[1773126058610,0.14730078,69971.0,69957.0,0.00850489]
[1773126058611,0.03,69969.0,69957.0,0.00850489]
[1773126058812,0.07167867,69971.0,69953.0,0.00144]
[1773126058813,0.03,69965.0,69953.0,0.00144]
[1773126059025,0.10562158,69965.0,69953.0,0.00144]
[1773126059158,0.03,69963.0,69954.0,0.00144]
[1773126059375,0.10562158,69963.0,69954.0,0.00144]
[1773126059565,0.10562158,69963.0,69947.0,0.07998758]
[1773126059771,0.07562158,69962.0,69948.0,0.00144]
[1773126059978,0.07562158,69958.0,69944.0,0.07168569]
[1773126060362,0.03,69957.0,69945.0,0.00144]
[1773126060739,0.03,69957.0,69944.0,0.0002]
[1773126060899,0.10562158,69957.0,69944.0,0.0002]
[1773126061095,0.03,69957.0,69944.0,0.0002]
[1773126061319,0.03,69955.0,69944.0,0.0002]
[1773126061524,0.10562158,69953.0,69944.0,0.00144]
[1773126062116,0.03,69951.0,69945.0,0.00144]
[1773126062692,0.07147758,69952.0,69934.0,0.0002]
[1773126062693,0.07562158,69946.0,69934.0,0.0002]
[1773126062894,0.10562158,69943.0,69933.0,0.00144]
[1773126063100,0.10562158,69943.0,69932.0,0.000184]
[1773126063308,0.10562158,69943.0,69934.0,0.00144]
[1773126063734,0.10562158,69943.0,69935.0,0.00144]
[1773126064069,0.1014878,69942.0,69935.0,0.00144]
[1773126064894,0.1014878,69942.0,69937.0,0.0002]
[1773126065088,0.1014878,69942.0,69935.0,0.00144]
[1773126067503,0.1014878,69942.0,69925.0,0.07173483]
[1773126067504,0.01012889,69931.0,69902.0,0.00015]
[1773126067727,0.16354872,69920.0,69894.0,0.09597655]
[1773126067965,0.03144,69919.0,69899.0,0.07887488]
[1773126068197,0.03,69916.0,69877.0,0.28490907]
[1773126068410,0.03,69916.0,69885.0,0.07887488]
[1773126068411,0.03,69907.0,69885.0,0.07887488]
[1773126068606,0.00454596,69906.0,69886.0,0.08530893]
[1773126068807,0.00454596,69906.0,69887.0,0.08530893]
[1773126069008,0.00454596,69906.0,69888.0,0.00144]
[1773126070269,0.03,69904.0,69887.0,0.08386893]
[1773126070473,0.03498417,69904.0,69888.0,0.00144]
[1773126071247,0.07151064,69920.0,69889.0,0.00491647]
[1773126071454,0.07151064,69920.0,69888.0,0.00144]
[1773126071455,0.03,69918.0,69892.0,0.07887488]
[1773126071678,0.03,69918.0,69896.0,0.07887488]
[1773126071801,0.03,69918.0,69887.0,0.07154385]
[1773126071802,0.03,69918.0,69899.0,0.00491647]
[1773126072017,0.00498417,69914.0,69897.0,0.00144]
[1773126072428,0.03,69912.0,69899.0,0.0002]
[1773126073196,0.001,69904.0,69899.0,0.00511647]
[1773126073574,0.07151745,69913.0,69893.0,0.00144]
[1773126073575,0.00498417,69906.0,69893.0,0.00144]
[1773126073917,0.00498417,69904.0,69892.0,0.00164]
[1773126074102,0.02079925,69903.0,69892.0,0.00164]
[1773126074303,0.19354872,69902.0,69892.0,0.00164]
[1773126074476,0.03,69900.0,69892.0,0.00164]
[1773126074797,0.03,69898.0,69892.0,0.00164]
[1773126074996,0.03,69896.0,69892.0,0.00164]
[1773126076529,0.03,69894.0,69892.0,0.0002]
[1773126076778,0.03,69894.0,69890.0,0.00144]
[1773126076971,0.0639155,69897.0,69890.0,0.00144]
[1773126077182,0.07253587,69896.0,69890.0,0.00144]
[1773126077384,0.07153587,69896.0,69890.0,0.00144]
[1773126077555,0.03,69895.0,69890.0,0.00144]
[1773126077697,0.03,69895.0,69891.0,0.00491647]
[1773126078531,0.03,69893.0,69891.0,0.00491647]
[1773126078861,0.03,69893.0,69890.0,0.00144]
[1773126080618,0.07153184,69899.0,69889.0,0.00491647]
[1773126080856,0.00144,69913.0,69891.0,0.00491647]
[1773126081067,0.00144,69913.0,69894.0,0.07887488]
[1773126081230,0.00144,69913.0,69897.0,0.00491647]
[1773126081428,0.00144,69913.0,69899.0,0.00491647]
[1773126081630,0.0800534,69908.0,69886.0,0.00491647]
[1773126081860,0.03,69907.0,69889.0,0.00491647]
[1773126082064,0.03,69907.0,69891.0,0.00491647]
[1773126082443,0.03,69907.0,69892.0,0.00491647]
[1773126082631,0.03,69905.0,69892.0,0.00491647]
[1773126083948,0.031,69905.0,69892.0,0.00491647]
[1773126084984,0.03,69903.0,69892.0,0.00491647]
[1773126085790,0.03,69903.0,69891.0,0.07887488]
[1773126087600,0.07152871,69902.0,69891.0,0.07887488]
[1773126087807,0.03,69901.0,69887.0,0.00233235]
[1773126088006,0.03,69901.0,69876.0,4.00567888]
[1773126088007,0.00498417,69886.0,69876.0,4.00567888]
[1773126088182,0.16354872,69890.0,69876.0,4.00567888]
[1773126088183,0.03,69884.0,69876.0,4.00567888]
[1773126088580,0.03,69884.0,69877.0,0.00144]
[1773126089271,0.03,69883.0,69877.0,0.00144]
[1773126089470,0.03,69883.0,69877.0,0.00164]
[1773126090109,0.03,69881.0,69877.0,0.00164]
[1773126091422,0.032,69881.0,69877.0,0.00164]
[1773126091594,0.031,69881.0,69877.0,0.00164]
[1773126091794,0.03,69881.0,69877.0,0.00164]
[1773126092003,0.031,69881.0,69877.0,0.00164]
[1773126092214,0.001,69881.0,69877.0,0.00164]
[1773126092397,0.07154713,69886.0,69877.0,0.00164]
[1773126092602,0.07153821,69893.0,69878.0,0.07887488]
[1773126092827,0.07153821,69893.0,69882.0,0.07887488]
[1773126093031,0.07153821,69893.0,69883.0,0.00144]
[1773126093344,0.03,69892.0,69883.0,0.00144]
[1773126093722,0.001,69886.0,69883.0,0.09791416]
[1773126093924,0.03,69892.0,69884.0,0.00144]
[1773126094495,0.03,69890.0,69884.0,0.00144]
[1773126095982,0.00498417,69889.0,69885.0,0.00144]
[1773126096142,0.03,69890.0,69886.0,0.00144]
[1773126096346,0.07152666,69904.0,69889.0,0.00491647]
[1773126096556,0.07152666,69904.0,69890.0,0.09647416]
[1773126096755,0.07651083,69904.0,69890.0,0.09647416]
[1773126096966,0.00498417,69903.0,69887.0,0.00144]
[1773126097512,0.00498417,69902.0,69887.0,0.00144]
[1773126097745,0.00498417,69902.0,69886.0,0.07154496]
[1773126097956,0.00498417,69902.0,69888.0,0.00144]
[1773126098114,0.00498417,69902.0,69889.0,0.09647416]
[1773126098443,0.00498417,69902.0,69886.0,0.07154496]
[1773126098649,0.00498417,69897.0,69887.0,0.00144]
[1773126098789,0.00498417,69897.0,69888.0,0.00144]
[1773126099202,0.03,69898.0,69888.0,0.00144]
[1773126099664,0.03,69897.0,69888.0,0.00144]
[1773126100089,0.07152973,69902.0,69889.0,0.09647416]
[1773126100288,0.07152973,69902.0,69890.0,0.10104254]
[1773126100662,0.00144,69906.0,69894.0,0.00456838]
[1773126100663,0.03,69905.0,69894.0,0.00456838]
[1773126100882,0.03,69905.0,69895.0,0.09791416]
[1773126101085,0.07152362,69907.0,69895.0,0.09791416]
[1773126101312,0.21415996,69910.0,69898.0,0.00456838]
[1773126101468,0.07137818,69910.0,69899.0,0.09647416]
[1773126101910,0.03,69909.0,69899.0,0.09647416]
[1773126102526,0.03,69909.0,69895.0,0.09791416]
[1773126102860,0.03,69907.0,69896.0,0.07153485]
[1773126103199,0.03,69907.0,69896.0,0.16800901]
[1773126104417,0.03,69907.0,69896.0,0.17257739]
[1773126104959,0.03,69907.0,69896.0,0.07153485]
[1773126105161,0.03,69907.0,69897.0,0.09647416]
[1773126105310,0.03,69906.0,69897.0,0.09647416]
[1773126107287,0.03,69906.0,69898.0,0.0715328]
[1773126107430,0.01539794,69915.0,69899.0,0.09647416]
[1773126107634,0.08691359,69915.0,69902.0,0.00456838]
[1773126107975,0.08691359,69915.0,69904.0,0.09647416]
[1773126108356,0.03,69914.0,69904.0,0.09647416]
[1773126109279,0.10151736,69914.0,69905.0,0.07152564]
[1773126112568,0.10151736,69914.0,69905.0,0.07172564]
[1773126112848,0.10173737,69914.0,69905.0,0.07172564]
[1773126114382,0.07150923,69922.0,69906.0,0.09637004]
[1773126114583,0.07173006,69921.0,69909.0,0.00483877]
[1773126116117,0.07151336,69917.0,69908.0,0.00144]
[1773126116316,0.00451712,69916.0,69905.0,0.0002]
[1773126116517,0.00451712,69916.0,69906.0,0.00144]
[1773126117035,0.00451712,69916.0,69907.0,0.00144]
[1773126118086,0.07151336,69920.0,69907.0,0.00144]
[1773126118087,0.07150825,69922.0,69908.0,0.00483877]
[1773126118296,0.0715085,69922.0,69913.0,0.00483877]
[1773126118505,0.07172728,69923.0,69914.0,0.00627877]
[1773126118713,0.07150833,69922.0,69914.0,0.00627877]
[1773126118917,0.001,69916.0,69914.0,0.00144]
[1773126119124,0.00022001,69923.0,69915.0,0.00483877]
[1773126120295,0.0001374,69925.0,69917.0,0.00483877]
[1773126120497,0.00054521,69942.0,69921.0,0.00483877]
[1773126120498,0.14239539,69939.0,69921.0,0.00483877]
[1773126120707,0.14239539,69940.0,69923.0,0.09637004]
[1773126120908,0.07148976,69941.0,69925.0,0.00483877]
[1773126121538,0.07148976,69941.0,69925.0,0.09637004]
[1773126121772,0.07148976,69941.0,69926.0,0.00483877]
[1773126121973,0.07203403,69942.0,69929.0,0.00483877]
[1773126122213,0.07203403,69942.0,69930.0,0.00627877]
[1773126122412,0.07203403,69942.0,69931.0,0.07149904]
[1773126122413,0.001,69939.0,69931.0,0.07149904]
[1773126122932,0.07203403,69942.0,69931.0,0.07149904]
[1773126123570,0.04867748,69942.0,69932.0,0.00483877]
[1773126123953,0.07148746,69943.0,69932.0,0.00483877]
[1773126124451,0.10148808,69942.0,69933.0,0.071497]
[1773126127243,0.10148808,69942.0,69932.0,0.071497]
[1773126127447,0.1060052,69942.0,69931.0,0.07149904]
[1773126127653,0.1060052,69942.0,69933.0,0.00144]
[1773126128592,0.1060052,69942.0,69933.0,0.07293662]
[1773126128798,0.10148808,69942.0,69933.0,0.07293662]
[1773126129349,0.10148808,69942.0,69933.0,0.07313662]
[1773126129553,0.10170809,69942.0,69933.0,0.07313662]
[1773126130193,0.10170809,69942.0,69933.0,0.07169662]
[1773126130395,0.10170809,69942.0,69934.0,0.00144]
[1773126130894,0.07148735,69943.0,69934.0,0.00144]
[1773126130895,0.04015479,69943.0,69934.0,0.07293579]
[1773126131204,0.03,69945.0,69936.0,0.10169922]
[1773126131403,0.00022001,69949.0,69935.0,0.10169922]
[1773126131705,0.00022001,69949.0,69934.0,0.07293579]
[1773126131706,0.00584001,69956.0,69938.0,0.10169922]
[1773126131852,0.00166001,69964.0,69938.0,0.10169922]
[1773126131853,0.00022001,69964.0,69938.0,0.10169922]
[1773126132047,0.03,69959.0,69940.0,0.10644434]
[1773126132250,0.03,69959.0,69940.0,0.00474512]
[1773126132478,0.00454062,69958.0,69940.0,0.00474512]
[1773126132892,0.03,69956.0,69942.0,0.00474512]
[1773126133169,0.03,69956.0,69941.0,0.07148882]
[1773126133314,0.00454062,69955.0,69943.0,0.00144]
[1773126133847,0.00454062,69955.0,69937.0,0.00474512]
[1773126134044,0.00454062,69950.0,69938.0,0.00144]
[1773126134421,0.03,69951.0,69938.0,0.00618512]
[1773126134625,0.03,69951.0,69940.0,0.10169922]
[1773126134827,0.07147247,69957.0,69941.0,0.00474512]
[1773126134998,0.03,69962.0,69946.0,0.00474512]
[1773126135202,0.03,69962.0,69949.0,0.00474512]
[1773126135607,0.03,69962.0,69950.0,0.00474512]
[1773126136029,0.03,69968.0,69952.0,0.00474512]
[1773126136265,0.03,69968.0,69954.0,0.10169922]
[1773126136465,0.00022001,69959.0,69955.0,0.00144]
[1773126136642,0.00022001,69959.0,69956.0,0.00474512]
[1773126137045,0.00022001,69959.0,69957.0,0.00474512]
[1773126137474,0.00022001,69966.0,69957.0,0.00474512]
[1773126137665,0.07168333,69966.0,69957.0,0.00474512]
[1773126138033,0.03,69965.0,69957.0,0.00474512]
[1773126139056,0.03,69965.0,69958.0,0.07147145]
[1773126139263,0.03,69964.0,69958.0,0.07147145]
[1773126140078,0.0714594,69970.0,69958.0,0.07147145]
[1773126140285,80.0,70251.0,69958.0,0.07147145]
[1773126140286,0.07145085,69979.0,69961.0,0.00474512]
[1773126140622,0.07199643,69978.0,69965.0,0.00474512]
[1773126141175,0.03,69977.0,69966.0,0.07146328]
[1773126142390,0.10706511,69984.0,69969.0,0.00474512]
[1773126142589,0.10706511,69984.0,69971.0,0.00474512]
[1773126143243,0.03562,69984.0,69974.0,0.00474512]
[1773126143399,0.10706576,69984.0,69974.0,0.00474512]
[1773126143595,0.03562,69984.0,69974.0,0.00474512]
[1773126143806,0.10706519,69984.0,69974.0,0.00474512]
[1773126144005,0.03562,69984.0,69974.0,0.00474512]
[1773126144402,0.10706546,69984.0,69974.0,0.00474512]
[1773126144841,0.03,69990.0,69974.0,0.00474512]
[1773126145052,0.10143877,69990.0,69975.0,0.00474512]
[1773126145239,0.10143877,69990.0,69976.0,0.07289256]
[1773126145397,0.00454062,69987.0,69977.0,0.00144]
[1773126145597,0.00454062,69985.0,69978.0,0.00144]
[1773126145852,0.00454062,69985.0,69971.0,0.07145752]
[1773126146053,0.00454062,69985.0,69950.0,0.00023]
[1773126146054,0.03,69977.0,69965.0,0.07146226]
[1773126146200,0.00454062,69976.0,69965.0,0.07146226]
[1773126146401,0.00454062,69976.0,69957.0,0.00474512]
[1773126146620,0.00454062,69976.0,69951.0,0.07167803]
[1773126146621,0.03,69971.0,69951.0,0.0002]
[1773126146824,0.00454062,69963.0,69947.0,0.07148234]
[1773126147003,0.03454062,69961.0,69951.0,0.00144]
[1773126147278,0.03,69959.0,69950.0,0.07170914]
[1773126147463,0.03,69959.0,69952.0,0.00144]
[1773126148257,0.03,69960.0,69952.0,0.00144]
[1773126149251,0.03,69960.0,69952.0,0.00718512]
[1773126149453,0.03,69960.0,69953.0,0.07147656]